{"text_format":"3","workbook":"xlsx","n_sheets":4,"sheets":["Κεντρικός πίνακας","Περιουσιακά στοιχεία","Υποχρεώσεις","υπολογισμοί"],"not_rendered":{"charts":4,"defined_names":8},"read":"whole","date_system":"1900"}

{"sheet":"Κεντρικός πίνακας","index":0,"n_rows":16,"n_cols":8,"rows_kept":16}
[]
[null,"ΚΕΝΤΡΙΚΟΣ ΠΙΝΑΚΑΣ",{"$nulls":4},"ΣΥΝΟΨΗ ΚΑΘΑΡΗΣ ΘΕΣΗΣ"," "]
{"$rows_empty":8}
[null,{"$f":"ΚαθαρήΘέση","v":{"v":159600,"d":"159,600 €"}},null,{"$f":"ΣύνολοΠεριουσιακώνΣτοιχείων","v":{"v":380800,"d":"380,800 €"}},null,null,{"$f":"ΣύνολοΥποχρεώσεων","v":{"v":221200,"d":"221,200 €"}}]
[null,"ΚΑΘΑΡΗ ΘΕΣΗ",null,"ΣΥΝΟΛΟ ΠΕΡΙΟΥΣΙΑΚΩΝ ΣΤΟΙΧΕΙΩΝ",null,null,"ΣΥΝΟΛΟ ΥΠΟΧΡΕΩΣΕΩΝ"]
[{"$nulls":3},"ΜΕΤΡΗΤΑ",null,null,"ΧΩΡΙΣ ΑΣΦΑΛΕΙΑ"]
[{"$nulls":3},"ΕΠΕΝΔΥΣΕΙΣ",null,null,"ΜΕ ΑΣΦΑΛΕΙΑ"]
[{"$nulls":3},"ΣΥΝΤΑΞΙΟΔΟΤΙΚΟ"]
[{"$nulls":3},"ΠΡΟΣΩΠΙΚΑ"]

{"sheet":"Περιουσιακά στοιχεία","index":1,"n_rows":23,"n_cols":10,"rows_kept":23,"merged":[[11,1,12,1],[13,1,14,1],[13,2,13,4],[13,6,13,8],[23,2,23,4],[23,6,23,8]]}
[]
[null,"ΠΕΡΙΟΥΣΙΑΚΑ ΣΤΟΙΧΕΙΑ",{"$nulls":5},"ΣΥΝΟΨΗ ΚΑΘΑΡΗΣ ΘΕΣΗΣ",null," "]
[]
[null,null," ","ΜΕΤΡΗΤΑ","ΑΞΙΑ",null," ","ΠΡΟΣΩΠΙΚΑ","ΑΞΙΑ"]
[{"$nulls":3},"ΜΕΤΡΗΤΑ",{"v":2000,"d":"2,000"},null,null,"ΚΥΡΙΑ ΚΑΤΟΙΚΙΑ",{"v":233000,"d":"233,000"}]
[{"$nulls":3},"ΛΟΓΑΡΙΑΣΜΟΙ ΟΨΕΩΣ",{"v":2500,"d":"2,500"},null,null,"ΔΕΥΤΕΡΗ ΚΑΤΟΙΚΙΑ"]
[{"$nulls":3},"ΛΟΓΑΡΙΑΣΜΟΙ ΑΠΟΤΑΜΙΕΥΣΗΣ",{"v":4000,"d":"4,000"},null,null,"ΣΥΛΛΕΚΤΙΚΑ ΑΝΤΙΚΕΙΜΕΝΑ"]
[{"$nulls":3},"ΛΟΓΑΡΙΑΣΜΟΙ ΧΡΗΜΑΤΑΓΟΡΑΣ",{"v":3300,"d":"3,300"},null,null,"ΑΥΤΟΚΙΝΗΤΑ",{"v":32000,"d":"32,000"}]
[{"$nulls":3},"ΛΟΓΑΡΙΑΣΜΟΙ ΕΠΕΝΔΥΣΕΩΝ ΣΕ ΧΡΗΜΑΤΑΓΟΡΕΣ",{"v":7000,"d":"7,000"},null,null,"ΕΠΙΠΛΩΣΗ",{"v":10000,"d":"10,000"}]
[{"$nulls":3},"ΠΙΣΤΟΠΟΙΗΤΙΚΑ ΚΑΤΑΘΕΣΕΩΝ ΠΡΟΘΕΣΜΙΑΣ",{"$nulls":3},"ΓΟΥΝΕΣ ΚΑΙ ΚΟΣΜΗΜΑΤΑ"]
[{"$nulls":3},"ΕΝΤΟΚΑ ΓΡΑΜΜΑΤΙΑ Η.Π.Α.",{"$nulls":3},"ΑΛΛΑ ΠΕΡΟΥΣΙΑΚΑ ΣΤΟΙΧΕΙΑ",{"v":1500,"d":"1,500"}]
[null,{"$f":"ΣύνολοΠεριουσιακώνΣτοιχείων","v":{"v":380800,"d":"380,800 €"}},null,"ΤΙΜΗ ΕΞΑΓΟΡΑΣ ΑΣΦΑΛΕΙΑΣ ΖΩΗΣ",{"v":24500,"d":"24,500"}]
[{"$nulls":3},"ΜΕΡΙΚΟ ΣΥΝΟΛΟ",{"$f":"SUBTOTAL(109,ΠίνακαςΜετρητών[ΑΞΙΑ])","v":{"v":43300,"d":"43,300"}},null,null,"ΜΕΡΙΚΟ ΣΥΝΟΛΟ",{"$f":"SUBTOTAL(109,ΠίνακαςΠροσωπικών[ΑΞΙΑ])","v":{"v":276500,"d":"276,500"}}]
[null,"ΣΥΝΟΛΟ ΠΕΡΙΟΥΣΙΑΚΩΝ ΣΤΟΙΧΕΙΩΝ"]
[]
[null,null," ","ΕΠΕΝΔΥΣΕΙΣ","ΑΞΙΑ",null," ","ΣΥΝΤΑΞΙΟΔΟΤΙΚΟ","ΑΞΙΑ"]
[{"$nulls":3},"ΜΕΤΟΧΕΣ",{"v":15000,"d":"15,000"},null,null,"ΣΥΝΤΑΞΗ ΙΚΑ"]
[{"$nulls":3},"ΟΜΟΛΟΓΑ",{"$nulls":3},"ΕΠΙΚΟΥΡΙΚΟ ΤΑΜΕΙΟ"]
[{"$nulls":3},"ΕΠΕΝΔΥΣΕΙΣ ΣΕ ΑΜΟΙΒΑΙΑ ΚΕΦΑΛΑΙΑ",{"$nulls":3},"ΣΥΝΤΑΞΗ ΟΑΕΕ"]
[{"$nulls":3},"ΣΥΜΜΕΤΟΧΕΣ ΣΕ ΕΤΑΙΡΕΙΕΣ",{"$nulls":3},"ΑΛΛΟ ΑΣΦΑΛΙΣΤΙΚΟ ΤΑΜΕΙΟ",{"v":46000,"d":"46,000"}]
[{"$nulls":3},"ΑΛΛΕΣ ΕΠΕΝΔΥΣΕΙΣ",{"$nulls":3},"ΙΔΙΩΤΙΚΟ ΣΥΝΤΑΞΙΟΔΟΤΙΚΟ"]
[{"$nulls":7},"ΜΕΤΟΧΕΣ ΕΡΓΑΖΟΜΕΝΟΥ"]
[{"$nulls":3},"ΜΕΡΙΚΟ ΣΥΝΟΛΟ",{"$f":"SUBTOTAL(109,ΠίνακαςΕπενδύσεων[ΑΞΙΑ])","v":{"v":15000,"d":"15,000"}},null,null,"ΜΕΡΙΚΟ ΣΥΝΟΛΟ",{"$f":"SUBTOTAL(109,ΠίνακαςΣυνταξιοδοτικού[ΑΞΙΑ])","v":{"v":46000,"d":"46,000"}}]

{"sheet":"Υποχρεώσεις","index":2,"n_rows":14,"n_cols":10,"rows_kept":14,"merged":[[11,1,12,1],[13,1,14,1]]}
[]
[null,"ΥΠΟΧΡΕΩΣΕΙΣ",{"$nulls":5},"ΣΥΝΟΨΗ ΚΑΘΑΡΗΣ ΘΕΣΗΣ",null," "]
[]
[null,null," ","ΧΩΡΙΣ ΑΣΦΑΛΕΙΑ","ΟΦΕΙΛΗ",null," ","ΜΕ ΑΣΦΑΛΕΙΑ","ΟΦΕΙΛΗ"]
[{"$nulls":3},"ΠΙΣΤΩΤΙΚΕΣ ΚΑΡΤΕΣ",{"v":1200,"d":"1,200"},null,null,"Δάνεια αυτοκινήτου",{"v":14500,"d":"14,500"}]
[{"$nulls":3},"ΧΡΕΩΣΤΙΚΟΙ ΛΟΓΑΡΙΑΣΜΟΙ",{"v":3000,"d":"3,000"},null,null,"Δάνεια αυτοκινήτων ιδιωτικής χρήσης"]
[{"$nulls":3},"ΦΟΙΤΗΤΙΚΑ ΔΑΝΕΙΑ",{"v":17500,"d":"17,500"},null,null,"Καταναλωτικά δάνεια"]
[{"$nulls":3},"ΔΙΑΤΡΟΦΗ",{"$nulls":3},"Στεγαστικά δάνεια",{"v":144000,"d":"144,000"}]
[{"$nulls":3},"ΔΙΑΤΡΟΦΗ ΠΑΙΔΙΩΝ",{"$nulls":3},"Ομολογιακά στεγαστικά δάνεια",{"v":21000,"d":"21,000"}]
[{"$nulls":3},"ΦΟΡΟΛΟΓΙΚΕΣ ΥΠΟΧΡΕΩΣΕΙΣ",{"v":8000,"d":"8,000"},null,null,"Άλλα δάνεια"]
[{"$nulls":3},"ΑΛΛΟ",{"v":6000,"d":"6,000"},null,null,"Φορολογικές υποχρεώσεις",{"v":4000,"d":"4,000"}]
[null,{"$f":"ΣύνολοΥποχρεώσεων","v":{"v":221200,"d":"221,200 €"}},{"$nulls":5},"Άλλο",{"v":2000,"d":"2,000"}]
[{"$nulls":3},"ΜΕΡΙΚΟ ΣΥΝΟΛΟ",{"$f":"SUBTOTAL(109,ΠίνακαςΧωρίςΑσφάλεια[ΟΦΕΙΛΗ])","v":{"v":35700,"d":"35,700"}},null,null,"ΜΕΡΙΚΟ ΣΥΝΟΛΟ",{"$f":"SUBTOTAL(109,ΠίνακαςΜεΑσφάλεια[ΟΦΕΙΛΗ])","v":{"v":185500,"d":"185,500"}}]
[null,"ΣΥΝΟΛΟ ΠΕΡΙΟΥΣΙΑΚΩΝ ΣΤΟΙΧΕΙΩΝ"]

{"sheet":"υπολογισμοί","index":3,"n_rows":23,"n_cols":3,"rows_kept":23,"hidden":true}
[]
[null,"*** Αυτό το φύλλο πρέπει να παραμείνει κρυφό ***"]
{"$rows_empty":8}
[null,{"$f":"ΠίνακαςΜετρητών[[#Headers],[ΜΕΤΡΗΤΑ]]","v":"ΜΕΤΡΗΤΑ"},{"$f":"SUM(ΠίνακαςΜετρητών[ΑΞΙΑ])","v":{"v":43300,"d":"43,300 €"}}]
[null,{"$f":"ΠίνακαςΕπενδύσεων[[#Headers],[ΕΠΕΝΔΥΣΕΙΣ]]","v":"ΕΠΕΝΔΥΣΕΙΣ"},{"$f":"SUM(ΠίνακαςΕπενδύσεων[ΑΞΙΑ])","v":{"v":15000,"d":"15,000 €"}}]
[null,{"$f":"ΠίνακαςΣυνταξιοδοτικού[[#Headers],[ΣΥΝΤΑΞΙΟΔΟΤΙΚΟ]]","v":"ΣΥΝΤΑΞΙΟΔΟΤΙΚΟ"},{"$f":"SUM(ΠίνακαςΣυνταξιοδοτικού[ΑΞΙΑ])","v":{"v":46000,"d":"46,000 €"}}]
[null,{"$f":"ΠίνακαςΠροσωπικών[[#Headers],[ΠΡΟΣΩΠΙΚΑ]]","v":"ΠΡΟΣΩΠΙΚΑ"},{"$f":"SUM(ΠίνακαςΠροσωπικών[ΑΞΙΑ])","v":{"v":276500,"d":"276,500 €"}}]
[null,"Σύνολο περιουσιακών στοιχείων",{"$f":"SUM(ΠίνακαςΜετρητών[ΑΞΙΑ],ΠίνακαςΕπενδύσεων[ΑΞΙΑ],ΠίνακαςΣυνταξιοδοτικού[ΑΞΙΑ],ΠίνακαςΠροσωπικών[ΑΞΙΑ])","v":{"v":380800,"d":"380,800 €"}}]
[]
[]
[null,{"$f":"ΠίνακαςΧωρίςΑσφάλεια[[#Headers],[ΧΩΡΙΣ ΑΣΦΑΛΕΙΑ]]","v":"ΧΩΡΙΣ ΑΣΦΑΛΕΙΑ"},{"$f":"SUM(ΠίνακαςΧωρίςΑσφάλεια[ΟΦΕΙΛΗ])","v":{"v":35700,"d":"35,700 €"}}]
[null,{"$f":"ΠίνακαςΜεΑσφάλεια[[#Headers],[ΜΕ ΑΣΦΑΛΕΙΑ]]","v":"ΜΕ ΑΣΦΑΛΕΙΑ"},{"$f":"SUM(ΠίνακαςΜεΑσφάλεια[ΟΦΕΙΛΗ])","v":{"v":185500,"d":"185,500 €"}}]
[null,"Σύνολο υποχρεώσεων",{"$f":"SUM(ΠίνακαςΧωρίςΑσφάλεια[ΟΦΕΙΛΗ],ΠίνακαςΜεΑσφάλεια[ΟΦΕΙΛΗ])","v":{"v":221200,"d":"221,200 €"}}]
[]
[]
[null,"Καθαρή θέση",{"$f":"C15-C20","v":{"v":159600,"d":"159,600 €"}}]